[Event "Irish Championship 2020"]
[Site "Dublin"]
[Date "2020.08.09"]
[Round "9.7"]
[White "Venkatesan, Kavin"]
[Black "Melaugh, Gavin"]
[Result "1/2-1/2"]
[ECO "A90"]
[WhiteElo "1946"]
[BlackElo "2003"]
[Annotator "NA"]
[PlyCount "160"]
[EventDate "2020.08.01"]
[EventType "swiss"]
[EventCountry "IRL"]
[SourceTitle "playchess.com"]
[Source "ChessBase"]
[SourceQuality "1"]
[TimeControl "8100+35"]

1. d4 {[%emt 0:00:00]} e6 {[%emt 0:08:44]} 2. c4 {[%emt 0:00:00]} f5 {[%emt 0:00:28]} 3. g3 {[%emt 0:00:00]} Nf6 {[%emt 0:00:04]} 4. Bg2 {[%emt 0:00:00]} Bb4+ {[%emt 0:00:29]} 5. Bd2 {[%emt 0:00:25]} Bxd2+ {[%emt 0:00:50]} 6. Nxd2 {[%emt 0:01:24]} O-O {[%emt 0:00:09]} 7. Ngf3 {[%emt 0:01:36]} d6 {[%emt 0:02:23]} 8. O-O {[%emt 0:02:31]} Nc6 {[%emt 0:05:41]} 9. Qc2 {[%emt 0:09:31]} e5 {[%emt 0:03:15] A90: Dutch Defence: Miscellaneous and Modern Stonewall (with ...Bd6).} 10. dxe5 {[%emt 0:07:29]} dxe5 {[%emt 0:00:14]} 11. Rfd1 {[%emt 0:01:19] [#]} Qe8 $146 {[%emt 0:03:40]} ({Predecessor:} 11... Qe7 12. e3 e4 13. Nd4 Ne5 14. a3 c5 15. Ne2 Be6 16. b3 Bf7 17. Nb1 Bh5 {1-0 (35) Chalmeta Ugas,J (2076)-Limeres Guiance,C (2272) Barcelona 2005}) 12. Nb3 {[%emt 0:12:00]} Qh5 {[%emt 0:13:12]} 13. Qc3 {[%emt 0:10:47]} Ne4 {[%emt 0:14:29]} 14. Qe3 {[%emt 0:00:41]} Be6 {[%emt 0:02:43]} 15. Rac1 {[%emt 0:03:33]} Rae8 {[%emt 0:07:56]} 16. Nc5 {[%emt 0:15:37]} Nxc5 {[%emt 0:03:02]} 17. Qxc5 {[%emt 0:00:04]} e4 {[%emt 0:00:13]} 18. Nd4 $1 {[%emt 0:00:28]} Nxd4 {[%emt 0:00:22]} 19. Qxd4 {[%emt 0:00:20]} Qxe2 {[%emt 0:10:20]} 20. Re1 {[%emt 0:04:44]} Qh5 {[%emt 0:13:09]} 21. Qxa7 {[%emt 0:01:40]} Qf7 {[%emt 0:08:58]} 22. Qc5 {[%emt 0:09:00]} Rd8 {[%emt 0:04:17]} 23. f3 {[%emt 0:08:21]} b6 {[%emt 0:02:51]} 24. Qf2 {[%emt 0:15:13]} exf3 {[%emt 0:02:47]} 25. Qxf3 {[%emt 0:02:11]} Bxc4 {[%emt 0:04:52]} 26. Qf4 {[%emt 0:02:17]} Bxa2 {[%emt 0:02:49]} 27. Rxc7 {[%emt 0:00:29]} Rd7 {[%emt 0:03:13]} 28. Rxd7 {[%emt 0:01:43]} Qxd7 {[%emt 0:00:20]} 29. Qb4 {[%emt 0:02:04]} b5 {[%emt 0:11:58]} 30. Bf3 {[%emt 0:12:54]} Bc4 {[%emt 0:04:55]} 31. Qc3 {[%emt 0:07:02]} Qf7 {[%emt 0:06:38]} 32. Re5 {[%emt 0:03:25]} Rd8 {[%emt 0:04:51]} 33. Qa5 {[%emt 0:04:46]} Re8 {[%emt 0:02:18]} 34. Rxe8+ {[%emt 0:00:11]} Qxe8 {[%emt 0:00:02]} 35. Qd2 {[%emt 0:00:07]} Qe6 {[%emt 0:00:50]} 36. Kg2 {[%emt 0:01:36]} Kf7 {[%emt 0:00:15]} 37. Bh5+ {[%emt 0:00:21]} g6 {[%emt 0:01:45]} 38. Bf3 {[%emt 0:00:06]} Qe5 {[%emt 0:00:40]} 39. b4 {[%emt 0:00:44]} Ke7 {[%emt 0:00:46]} 40. Kf2 {[%emt 0:01:00]} Qd6 {[%emt 0:00:54]} 41. Qe3+ {[%emt 0:01:05]} Kf6 {[%emt 0:00:25]} 42. Qc3+ {[%emt 0:00:30]} Qe5 {[%emt 0:00:19]} 43. Qd2 {[%emt 0:00:02]} Ke6 {[%emt 0:00:35]} 44. h4 {[%emt 0:02:36]} Bd5 {[%emt 0:00:47]} 45. Bxd5+ {[%emt 0:00:40]} Qxd5 {[%emt 0:00:01]} 46. Qe3+ {[%emt 0:00:16]} Kd6 {[%emt 0:01:17]} 47. Qb6+ {[%emt 0:00:36]} Qc6 {[%emt 0:00:34]} 48. Qd4+ {[%emt 0:00:12]} Ke6 {[%emt 0:00:20]} 49. Qe3+ {[%emt 0:00:11]} Kf7 {[%emt 0:01:08]} 50. Qa7+ {[%emt 0:01:07]} Kg8 {[%emt 0:00:09]} 51. Qb8+ {[%emt 0:00:12]} Kg7 {[%emt 0:00:15]} 52. Qa7+ {[%emt 0:00:01]} Kf6 {[%emt 0:00:49]} 53. Qd4+ {[%emt 0:00:06]} Ke6 {[%emt 0:00:19]} 54. Qe3+ {[%emt 0:00:06]} Kd6 {[%emt 0:01:22]} 55. Qd4+ {[%emt 0:00:23]} Qd5 {[%emt 0:00:32]} 56. Qb6+ {[%emt 0:00:43]} Ke5 {[%emt 0:00:34]} 57. Qe3+ {[%emt 0:01:22]} Kf6 {[%emt 0:00:20]} 58. Qb6+ {[%emt 0:00:15]} Kg7 {[%emt 0:00:56]} 59. Qa7+ {[%emt 0:00:25]} Qf7 {[%emt 0:00:31]} 60. Qd4+ {[%emt 0:00:07]} Kf8 {[%emt 0:00:25]} 61. Qh8+ $11 {[%emt 0:00:36]} Qg8 {[%emt 0:00:49]} 62. Qf6+ {[%emt 0:00:39]} Qf7 {[%emt 0:00:27]} 63. Qh8+ {[%emt 0:01:19]} Qg8 {[%emt 0:00:39]} 64. Qf6+ {[%emt 0:01:38]} Qf7 {[%emt 0:00:14]} 65. Qh8+ {[%emt 0:00:54]} Ke7 {[%emt 0:00:08]} 66. Qe5+ {[%emt 0:00:08]} Qe6 {[%emt 0:00:01]} 67. Qxb5 {[%emt 0:00:26]} Qa2+ {[%emt 0:00:17]} 68. Kf1 {[%emt 0:01:03]} Qb1+ {[%emt 0:01:04]} 69. Kg2 {[%emt 0:00:42]} Qe4+ {[%emt 0:00:16]} 70. Kf2 {[%emt 0:00:29]} f4 {[%emt 0:01:03]} 71. Qg5+ {[%emt 0:00:23]} Ke6 {[%emt 0:01:06]} 72. Qxf4 {[%emt 0:00:07]} Qc2+ {[%emt 0:00:08]} 73. Kf3 {[%emt 0:00:54]} Qd1+ {[%emt 0:00:18]} 74. Kg2 {[%emt 0:00:14]} Qe2+ {[%emt 0:00:44]} 75. Kh3 {[%emt 0:00:11]} h5 {[%emt 0:00:26]} 76. Qd4 {[%emt 0:03:09]} Qf1+ {[%emt 0:00:25]} 77. Kh2 {[%emt 0:00:06]} Qe2+ {[%emt 0:00:10]} 78. Kg1 {[%emt 0:00:37]} Qe1+ {[%emt 0:00:19]} 79. Kg2 {[%emt 0:00:58]} Qe2+ {[%emt 0:00:06]} 80. Kg1 {[%emt 0:00:07]} Qe1+ {[%emt 0:00:05]} 1/2-1/2

[Event "Irish Championship 2020"]
[Site "Dublin"]
[Date "2020.08.09"]
[Round "9.8"]
[White "Peoples, Jonathon"]
[Black "Putar, Leon"]
[Result "1-0"]
[ECO "C06"]
[WhiteElo "1932"]
[BlackElo "1894"]
[Annotator "ChessBase"]
[PlyCount "73"]
[EventDate "2020.08.01"]
[EventType "swiss"]
[EventCountry "IRL"]
[SourceTitle "playchess.com"]
[Source "ChessBase"]
[SourceQuality "1"]
[TimeControl "8100+35"]

1. e4 {[%emt 0:00:00]} e6 {[%emt 0:00:00]} 2. d4 {[%emt 0:00:00]} d5 {[%emt 0:00:00]} 3. Nd2 {[%emt 0:00:00]} Nf6 {[%emt 0:00:39]} 4. e5 {[%emt 0:00:00]} Nfd7 {[%emt 0:00:46]} 5. Bd3 {[%emt 0:00:04]} c5 {[%emt 0:00:44]} 6. c3 {[%emt 0:00:05]} Nc6 {[%emt 0:01:46]} 7. Ne2 {[%emt 0:00:07]} cxd4 {[%emt 0:00:47]} 8. cxd4 {[%emt 0:00:05]} f6 {[%emt 0:00:22]} 9. Nf4 {[%emt 0:00:04]} Qe7 {[%emt 0:03:00]} 10. Nf3 {[%emt 0:00:33]} fxe5 {[%emt 0:07:38]} 11. dxe5 {[%emt 0:00:12]} Ndxe5 {[%emt 0:02:40]} 12. Nxe5 {[%emt 0:00:06]} Nxe5 {[%emt 0:00:16]} 13. Qh5+ {[%emt 0:00:05]} Nf7 {[%emt 0:00:55]} 14. O-O {[%emt 0:01:20]} g6 {[%emt 0:02:57]} 15. Qe2 {[%emt 0:00:24]} Bd7 {[%emt 0:04:45]} 16. Re1 {[%emt 0:12:50]} e5 {[%emt 0:15:26]} 17. Nxd5 {[%emt 0:14:01]} Qd6 {[%emt 0:04:32]} 18. Nc3 {[%emt 0:03:57]} a6 {[%emt 0:04:38]} 19. Be3 {[%emt 0:04:20]} Be7 {[%emt 0:08:10]} 20. Rad1 {[%emt 0:08:11]} Rc8 {[%emt 0:04:21]} 21. Be4 {[%emt 0:25:03]} Qb4 {[%emt 0:09:09]} 22. a3 {[%emt 0:05:03]} Qa5 {[%emt 0:02:39]} 23. Nd5 {[%emt 0:06:06]} Bd8 {[%emt 0:03:30]} 24. Qf3 {[%emt 0:07:34]} O-O {[%emt 0:03:15]} 25. b4 {[%emt 0:08:25]} Qb5 {[%emt 0:05:31]} 26. Nf6+ {[%emt 0:04:07]} Bxf6 {[%emt 0:01:09]} 27. Qxf6 {[%emt 0:00:07]} Bc6 {[%emt 0:01:54]} 28. Bc5 {[%emt 0:08:24]} Rfe8 {[%emt 0:00:38]} 29. Bd3 {[%emt 0:00:14]} Qa4 {[%emt 0:00:41]} 30. Bc4 {[%emt 0:00:12]} Rc7 {[%emt 0:05:27]} 31. Be3 {[%emt 0:03:36]} g5 {[%emt 0:01:33]} 32. Bxg5 {[%emt 0:01:08]} Qc2 {[%emt 0:00:18]} 33. Rd3 {[%emt 0:05:19]} Qxc4 {[%emt 0:05:31]} 34. Rg3 {[%emt 0:00:22]} Be4 {[%emt 0:01:42]} 35. Bh6+ {[%emt 0:00:10]} Ng5 {[%emt 0:00:06]} 36. Rxg5+ {[%emt 0:00:12]} Bg6 {[%emt 0:00:07]} 37. Rxg6+ {[%emt 0:01:14]} 1-0

[Event "Irish Championship 2020"]
[Site "Dublin"]
[Date "2020.08.09"]
[Round "9.10"]
[White "Putar, Lara"]
[Black "O`Gorman, Alice"]
[Result "1-0"]
[ECO "D30"]
[WhiteElo "1834"]
[BlackElo "1904"]
[Annotator "ChessBase"]
[PlyCount "71"]
[EventDate "2020.08.01"]
[EventType "swiss"]
[EventCountry "IRL"]
[SourceTitle "playchess.com"]
[Source "ChessBase"]
[SourceQuality "1"]
[TimeControl "8100+35"]

1. d4 {[%emt 0:00:00]} d5 {[%emt 2:15:35]} 2. c4 {[%emt 0:00:00]} e6 {[%emt 0:00:35]} 3. Nf3 {[%emt 0:00:00]} c6 {[%emt 0:00:35]} 4. g3 {[%emt 0:00:05]} dxc4 {[%emt 0:00:35]} 5. Bg2 {[%emt 0:00:41]} b5 {[%emt 0:00:35]} 6. a4 {[%emt 0:01:13]} Bb7 {[%emt 0:00:35]} 7. Nc3 {[%emt 0:02:00]} a6 {[%emt 0:00:35]} 8. Ne5 {[%emt 0:01:29]} Qc8 {[%emt 0:00:35]} 9. O-O {[%emt 0:03:45]} Nd7 {[%emt 0:00:35]} 10. Ne4 {[%emt 0:06:32]} Be7 {[%emt 0:00:35]} 11. Nxd7 {[%emt 0:08:25]} Qxd7 {[%emt 0:00:35]} 12. Nc5 {[%emt 0:01:14]} Bxc5 {[%emt 0:00:35]} 13. dxc5 {[%emt 0:00:11]} Qe7 {[%emt 0:00:35]} 14. Qd6 {[%emt 0:06:07]} Qxd6 {[%emt 0:00:35]} 15. cxd6 {[%emt 0:00:13]} Nf6 {[%emt 0:00:35]} 16. axb5 {[%emt 0:11:46]} axb5 {[%emt 0:00:35]} 17. Rxa8+ {[%emt 0:01:27]} Bxa8 {[%emt 0:00:35]} 18. Be3 {[%emt 0:01:00]} Kd7 {[%emt 0:00:35]} 19. Bc5 {[%emt 0:01:08]} Bb7 {[%emt 0:00:35]} 20. e4 {[%emt 0:05:55]} Ra8 {[%emt 0:00:35]} 21. f4 {[%emt 0:06:42]} Ra4 {[%emt 0:00:35]} 22. e5 {[%emt 0:02:42]} Ng8 {[%emt 0:00:35]} 23. f5 {[%emt 0:03:02]} exf5 {[%emt 0:00:35]} 24. Rxf5 {[%emt 0:04:31]} Ra1+ {[%emt 0:00:35]} 25. Kf2 {[%emt 0:02:51]} Nh6 {[%emt 0:00:35]} 26. Bh3 {[%emt 0:02:42]} Ke8 {[%emt 0:00:35]} 27. d7+ {[%emt 0:00:36]} Kd8 {[%emt 0:00:35]} 28. Bb6+ {[%emt 0:00:20]} Kxd7 {[%emt 0:00:35]} 29. Rxf7+ {[%emt 0:00:22]} Ke8 {[%emt 0:00:35]} 30. Rxb7 {[%emt 0:00:36]} Ra2 {[%emt 0:00:35]} 31. Bd7+ {[%emt 0:01:03]} Ke7 {[%emt 0:00:35]} 32. Bc5+ {[%emt 0:00:20]} Kd8 {[%emt 0:00:35]} 33. e6 {[%emt 0:00:50]} Rxb2+ {[%emt 0:00:35]} 34. Kf3 {[%emt 0:00:19]} Nf5 {[%emt 0:00:35]} 35. g4 {[%emt 0:00:43]} Ne7 {[%emt 0:00:35]} 36. Bb6# {[%emt 0:00:09]} 1-0

[Event "Irish Championship 2020"]
[Site "Dublin"]
[Date "2020.08.09"]
[Round "9.11"]
[White "Lyons, Brendan"]
[Black "Carroll, Peter"]
[Result "0-1"]
[ECO "B06"]
[WhiteElo "1941"]
[BlackElo "2009"]
[Annotator "NA"]
[PlyCount "36"]
[EventDate "2020.08.01"]
[EventType "swiss"]
[EventCountry "IRL"]
[SourceTitle "playchess.com"]
[Source "ChessBase"]
[SourceQuality "1"]
[TimeControl "8100+35"]

{[%evp 8,36,62,64,62,32767,32767,53,70,53,74,-11,9,-26,3,-175,32767,32767,-377,-534,32767,32767,32767,32767,32767,32767,-1283,32767,32767,32767,-1570]} 1. e4 {[%emt 0:21:16]} c5 {[%emt 0:08:41]} 2. Nc3 {[%emt 0:00:10]} g6 {[%emt 0:00:10]} 3. d4 {[%emt 0:00:06]} Bg7 {[%emt 0:06:01]} 4. dxc5 {[%emt 0:00:53]} Qa5 {[%emt 0:20:28]} 5. Bd2 {[%emt 0:01:09]} Qxc5 {[%emt 0:00:19]} 6. Nd5 {[%emt 0:00:11]} Na6 {[%emt 0:06:58]} 7. Nf3 {[%emt 0:30:20]} e6 $1 {[%emt 0:14:03]} 8. b4 {[%emt 0:11:20]} Qf8 {[%emt 0:01:38]} 9. b5 {[%emt 0:09:42]} (9. Nc3 $16) 9... exd5 {[%emt 0:04:01]} 10. bxa6 {[%emt 0:00:21]} dxe4 {[%emt 0:00:52]} 11. axb7 $2 {[%emt 0:05:38]} (11. Ng5 $14 {stays ahead.} h6 12. Rb1 hxg5 13. axb7 Bxb7 14. Rxb7) 11... Bxb7 {[%emt 0:05:53]} 12. Rb1 {[%emt 0:00:56]} exf3 {[%emt 0:00:31]} 13. gxf3 {[%emt 0:25:39]} (13. Rxb7 {was the only defense.} Qe7+ 14. Be2 fxe2 15. Qxe2) 13... Qe7+ {[%emt 0:00:50]} 14. Be2 {[%emt 0:13:31]} Bxf3 {[%emt 0:01:56]} 15. Be3 {[%emt 0:00:49]} Bxh1 {[%emt 0:01:50]} 16. Bb5 {[%emt 0:06:16]} Nf6 {[%emt 0:01:17]} 17. Kf1 {[%emt 0:00:45]} O-O {[%emt 0:00:50]} 18. Rb3 {[%emt 0:00:49]} Qe4 $19 {[%emt 0:01:06]} 0-1

[Event "Irish Championship 2020"]
[Site "Dublin"]
[Date "2020.08.09"]
[Round "9.12"]
[White "Byrne, Alex"]
[Black "Casey, Eoghan"]
[Result "1/2-1/2"]
[ECO "D94"]
[WhiteElo "1976"]
[BlackElo "1954"]
[Annotator "NA"]
[PlyCount "111"]
[EventDate "2020.08.01"]
[EventType "swiss"]
[EventCountry "IRL"]
[SourceTitle "playchess.com"]
[Source "ChessBase"]
[SourceQuality "1"]
[TimeControl "8100+35"]

1. e4 {[%emt 0:00:00]} c5 {[%emt 0:00:00]} 2. c3 {[%emt 0:00:00]} d5 {[%emt 0:00:00]} 3. exd5 {[%emt 0:00:00]} Nf6 {[%emt 0:00:00]} 4. Nf3 {[%emt 0:00:00]} Nxd5 {[%emt 0:00:00]} 5. d4 {[%emt 0:00:00]} cxd4 {[%emt 0:00:00]} 6. cxd4 {[%emt 0:00:14]} g6 {[%emt 0:02:44]} 7. Nc3 {[%emt 0:02:13]} Bg7 {[%emt 0:00:51]} 8. Bc4 {[%emt 0:03:30]} Nb6 {[%emt 0:01:22]} 9. Bb3 {[%emt 0:00:28]} O-O {[%emt 0:00:20]} 10. O-O {[%emt 0:00:03]} Bg4 {[%emt 0:01:13]} 11. h3 {[%emt 0:01:58]} Bxf3 $1 {[%emt 0:02:40]} 12. Qxf3 {[%emt 0:00:01]} Nc6 {[%emt 0:00:36]} 13. Be3 {[%emt 0:01:20]} Qd7 {[%emt 0:32:45] [#] D94: Grünfeld: 4 Nf3 Bg7 5 e3.} 14. Ne4 $146 {[%emt 0:20:02]} (14. d5 $11 Na5 15. Rfe1) ({Predecessor:} 14. Rad1 Nxd4 15. Bxd4 Bxd4 16. Ne2 e5 17. Nxd4 exd4 18. Rd3 Rad8 19. Rfd1 Qe7 20. Rxd4 Rxd4 21. Rxd4 {½-½ (30) Smirin,I (2659)-Grischuk,A (2709) Rishon Le Ziyyon 2006}) 14... Nxd4 {[%emt 0:07:13]} 15. Bxd4 {[%emt 0:04:09]} Qxd4 {[%emt 0:00:30]} 16. Rad1 {[%emt 0:00:38]} Qxb2 {[%emt 0:23:39]} 17. Nc5 {[%emt 0:23:31]} Qc3 {[%emt 0:03:36]} 18. Qxc3 {[%emt 0:00:25]} Bxc3 {[%emt 0:00:02]} 19. Nxb7 {[%emt 0:02:51]} Rfc8 {[%emt 0:35:28]} 20. Rd3 {[%emt 0:05:42]} Bb4 {[%emt 0:08:56]} 21. a3 {[%emt 0:07:58]} Rab8 {[%emt 0:13:02]} 22. axb4 {[%emt 0:00:46]} Rxb7 {[%emt 0:00:05]} 23. f4 {[%emt 0:02:48]} e6 {[%emt 0:03:31]} 24. g4 {[%emt 0:00:10]} Nd7 {[%emt 0:01:18]} 25. f5 {[%emt 0:03:31]} Nf8 {[%emt 0:02:47]} 26. Rf4 {[%emt 0:05:38]} Rcb8 {[%emt 0:00:53]} 27. fxe6 {[%emt 0:00:12]} Nxe6 {[%emt 0:00:26]} 28. Bxe6 {[%emt 0:00:03]} fxe6 {[%emt 0:00:06]} 29. Rd6 {[%emt 0:00:08]} Rxb4 {[%emt 0:05:36]} 30. Rxb4 {[%emt 0:00:02]} Rxb4 {[%emt 0:00:01]} 31. Rxe6 {[%emt 0:00:01]} Ra4 {[%emt 0:00:05]} 32. Re7 {[%emt 0:00:26]} Ra2 {[%emt 0:01:04]} 33. Rb7 {[%emt 0:00:08]} a5 {[%emt 0:00:13]} 34. Ra7 $2 {[%emt 0:00:02]} (34. Kf1) 34... a4 {[%emt 0:00:05]} 35. Kh1 {[%emt 0:00:17]} a3 {[%emt 0:00:27]} 36. Kg1 {[%emt 0:00:01]} h6 {[%emt 0:00:19]} 37. Kh1 {[%emt 0:00:08]} Ra1+ {[%emt 0:01:32]} 38. Kg2 {[%emt 0:00:02]} a2 {[%emt 0:00:05]} 39. Kh2 {[%emt 0:00:04]} Kf8 {[%emt 0:00:31]} 40. Kg2 {[%emt 0:00:05]} Ke8 {[%emt 0:00:15]} 41. Kh2 {[%emt 0:00:00]} Kd8 {[%emt 0:00:07]} 42. Kg2 {[%emt 0:00:01]} Kc8 {[%emt 0:00:08]} 43. Kh2 {[%emt 0:00:01]} Kb8 {[%emt 0:00:06]} 44. Ra3 {[%emt 0:00:04]} Kb7 {[%emt 0:00:11]} 45. Kg2 {[%emt 0:00:10]} Kb6 {[%emt 0:00:06]} 46. Kh2 {[%emt 0:00:09]} Kb5 {[%emt 0:02:08]} 47. Kg2 {[%emt 0:00:05]} Kc5 {[%emt 0:00:59]} 48. Ra4 {[%emt 0:00:24]} Kd5 {[%emt 0:00:13]} 49. Ra5+ {[%emt 0:00:06]} Ke4 {[%emt 0:00:06]} 50. Ra3 {[%emt 0:00:15]} Kf4 {[%emt 0:00:18]} 51. Ra5 {[%emt 0:00:11]} Ke4 {[%emt 0:04:29]} 52. Ra4+ {[%emt 0:00:06]} Ke5 {[%emt 0:00:14]} 53. Ra5+ {[%emt 0:00:10]} Kf4 $19 {[%emt 0:00:27]} 54. Kh2 {[%emt 0:00:04]} Kf3 {[%emt 0:01:48]} 55. Ra3+ {[%emt 0:00:08]} Ke4 {[%emt 0:00:36]} 56. Ra5 {[%emt 0:00:11]} 1/2-1/2

[Event "Irish Championship 2020"]
[Site "Dublin"]
[Date "2020.08.09"]
[Round "9.13"]
[White "Mirza, Diana"]
[Black "Moran, Darragh"]
[Result "1-0"]
[ECO "D04"]
[WhiteElo "1939"]
[BlackElo "1873"]
[Annotator "ChessBase"]
[PlyCount "116"]
[EventDate "2020.08.01"]
[EventType "swiss"]
[EventCountry "IRL"]
[SourceTitle "playchess.com"]
[Source "ChessBase"]
[SourceQuality "1"]
[TimeControl "8100+35"]

1. d4 {[%emt 0:00:00]} c6 {[%emt 0:10:58]} 2. Nf3 {[%emt 0:00:11]} Nf6 {[%emt 0:00:28]} 3. e3 {[%emt 0:00:28]} d5 {[%emt 0:00:05]} 4. Bd3 {[%emt 0:00:05]} Bg4 {[%emt 0:00:05]} 5. c4 {[%emt 0:01:31]} e6 {[%emt 0:00:16]} 6. Nc3 {[%emt 0:07:14]} Nbd7 {[%emt 0:04:00]} 7. O-O {[%emt 0:01:45]} Bd6 {[%emt 0:02:21]} 8. h3 {[%emt 0:07:05]} Bh5 {[%emt 0:00:45]} 9. e4 {[%emt 0:03:54]} dxe4 {[%emt 0:02:24]} 10. Nxe4 {[%emt 0:00:11]} Nxe4 {[%emt 0:00:33]} 11. Bxe4 {[%emt 0:00:06]} Bg6 {[%emt 0:02:04]} 12. Bxg6 {[%emt 0:03:06]} hxg6 {[%emt 0:00:06]} 13. d5 {[%emt 0:00:12]} cxd5 {[%emt 0:01:56]} 14. cxd5 {[%emt 0:00:36]} e5 {[%emt 0:00:50]} 15. Bg5 {[%emt 0:07:51]} Qb6 {[%emt 0:01:38]} 16. Qa4 {[%emt 0:01:55]} Qb4 {[%emt 0:02:43]} 17. Qxb4 {[%emt 0:07:45]} Bxb4 {[%emt 0:00:02]} 18. a3 {[%emt 0:00:15]} Bd6 {[%emt 0:00:44]} 19. Nd2 {[%emt 0:03:36]} f6 {[%emt 0:06:39]} 20. Be3 {[%emt 0:00:46]} Ke7 {[%emt 0:07:33]} 21. Rac1 {[%emt 0:03:54]} Rhc8 {[%emt 0:08:15]} 22. Nc4 {[%emt 0:07:48]} b6 {[%emt 0:02:18]} 23. a4 {[%emt 0:11:14]} Rc7 {[%emt 0:06:06]} 24. f4 {[%emt 0:25:22]} Rac8 {[%emt 0:02:48]} 25. b3 {[%emt 0:02:42]} Bc5 {[%emt 0:08:11]} 26. Bxc5+ {[%emt 0:01:07]} Rxc5 {[%emt 0:00:15]} 27. d6+ {[%emt 0:04:11]} Ke6 {[%emt 0:01:12]} 28. Rfe1 {[%emt 0:10:03]} Kf5 {[%emt 0:03:25]} 29. fxe5 {[%emt 0:06:53]} fxe5 {[%emt 0:12:41]} 30. Re3 {[%emt 0:01:11]} a6 {[%emt 0:08:43]} 31. Rf1+ {[%emt 0:00:20]} Kg5 {[%emt 0:15:00]} 32. Rf7 {[%emt 0:02:23]} b5 {[%emt 0:01:34]} 33. axb5 {[%emt 0:02:54]} axb5 {[%emt 0:00:05]} 34. Nd2 {[%emt 0:02:20]} Rc1+ {[%emt 0:00:39]} 35. Kh2 {[%emt 0:00:18]} Rd8 {[%emt 0:01:49]} 36. Rxg7 {[%emt 0:01:39]} Kh6 {[%emt 0:01:09]} 37. Rf7 {[%emt 0:01:25]} Nc5 {[%emt 0:01:42]} 38. Rc7 {[%emt 0:01:51]} Rxd6 {[%emt 0:03:38]} 39. Ne4 {[%emt 0:01:18]} Rd3 {[%emt 0:03:18]} 40. Rxd3 {[%emt 0:11:44]} Nxd3 {[%emt 0:00:11]} 41. Rxc1 {[%emt 0:01:19]} Nxc1 {[%emt 0:00:05]} 42. Nc5 {[%emt 0:00:03]} Kg5 {[%emt 0:00:39]} 43. Kg3 {[%emt 0:00:15]} Kf6 {[%emt 0:02:30]} 44. Kg4 {[%emt 0:02:46]} Ke7 {[%emt 0:01:08]} 45. Kg5 {[%emt 0:02:01]} Kd6 {[%emt 0:00:30]} 46. Ne4+ {[%emt 0:02:08]} Kd5 {[%emt 0:00:20]} 47. Nc3+ {[%emt 0:00:11]} Kc5 {[%emt 0:03:49]} 48. Kxg6 {[%emt 0:01:26]} b4 {[%emt 0:05:37]} 49. Nd1 {[%emt 0:01:06]} Nxb3 {[%emt 0:16:45]} 50. h4 {[%emt 0:00:03]} Nd4 {[%emt 0:00:36]} 51. h5 {[%emt 0:00:08]} Ne6 {[%emt 0:00:28]} 52. h6 {[%emt 0:01:06]} b3 {[%emt 0:00:38]} 53. Kf6 {[%emt 0:01:02]} Nf8 {[%emt 0:02:36]} 54. Kxe5 {[%emt 0:01:10]} Kc4 {[%emt 0:00:17]} 55. Kf6 {[%emt 0:00:39]} Kd3 {[%emt 0:00:34]} 56. Kg7 {[%emt 0:00:12]} Kc2 {[%emt 0:01:21]} 57. Kxf8 {[%emt 0:00:45]} Kxd1 {[%emt 0:00:05]} 58. Kg7 {[%emt 0:03:21]} Kc2 1-0